{"text_format":"3","workbook":"xlsx","n_sheets":3,"sheets":["Havi költségvetési jelentés","Havi kiadások","Egyéb adatok"],"not_rendered":{"charts":1,"defined_names":4,"pivot_tables":2},"read":"whole","date_system":"1900"}

{"sheet":"Havi költségvetési jelentés","index":0,"n_rows":34,"n_cols":13,"rows_kept":34,"merged":[[7,1,10,1],[7,5,10,5],[7,6,10,6],[12,1,16,1],[12,5,16,5],[12,6,16,6]]}
[null,"Költségvetés áttekintése",{"$nulls":7},"Költségvetés összefoglalása"]
[null,"Egyenleg"]
[null,"Tervezett egyenleg","(Tervezett mínusz költségek)",{"$nulls":3},{"$f":"D17-SUM(KöltségvetésRészletei[Tervezett költség])","v":{"v":1585,"d":"1,585 Ft"}}]
[null,"Tényleges egyenleg","(Tényleges mínusz költségek)",{"$nulls":3},{"$f":"D11-SUM(KöltségvetésRészletei[Tényleges költség])","v":{"v":1740,"d":"1,740 Ft"}}]
[null,"Különbség","(Tényleges mínusz tervezett)",{"$nulls":3},{"$f":"G4-G3","v":{"v":155,"d":"155 Ft"}}]
[]
[null,"Bevétel",{"$nulls":3},"Kiadás",{"$nulls":3},"Kattintson a jobb gombbal az alábbi kimutatástáblázatra, és a Frissítés parancsra kattintva frissítse"]
[null,"TÉNYLEGES","1. bevétel",{"v":5800,"d":"5,800 Ft"},null,"TÉNYLEGES",{"$f":"SUM(KöltségvetésRészletei[Tényleges költség])","v":{"v":7860,"d":"7,860 Ft"}}]
[null,null,"2. bevétel",{"v":2300,"d":"2,300 Ft"},{"$nulls":5},"Kategória","Tervezett költség ","Tényleges költség ","Különbség "]
[null,null,"Extra bevétel",{"v":1500,"d":"1,500 Ft"},{"$nulls":5},"Gyermekek",{"v":140,"d":"140 Ft"},{"v":140,"d":"140 Ft"},{"v":0,"d":"0 Ft"}]
[null,null,"Bevétel összesen",{"$f":"SUM(D8:D10)","v":{"v":9600,"d":"9,600 Ft"}}]
[{"$nulls":9},"Szórakozás",{"v":400,"d":"400 Ft"},{"v":358,"d":"358 Ft"},{"v":42,"d":"42 Ft"}]
[null,"TERVEZETT",{"$nulls":3},"TERVEZETT",{"$f":"SUM(KöltségvetésRészletei[Tervezett költség])","v":{"v":7915,"d":"7,915 Ft"}}]
[null,null,"1. bevétel",{"v":6000,"d":"6,000 Ft"},{"$nulls":5},"Étel",{"v":1100,"d":"1,100 Ft"},{"v":1320,"d":"1,320 Ft"},{"v":-220,"d":"-220 Ft"}]
[null,null,"2. bevétel",{"v":1000,"d":"1,000 Ft"}]
[null,null,"Extra bevétel",{"v":2500,"d":"2,500 Ft"},{"$nulls":5},"Ajándékok/adományok",{"v":100,"d":"100 Ft"},{"v":125,"d":"125 Ft"},{"v":-25,"d":"-25 Ft"}]
[null,null,"Bevétel összesen",{"$f":"SUM(D14:D16)","v":{"v":9500,"d":"9,500 Ft"}}]
[{"$nulls":9},"Lakás",{"v":2830,"d":"2,830 Ft"},{"v":2702,"d":"2,702 Ft"},{"v":128,"d":"128 Ft"}]
[]
[{"$nulls":9},"Biztosítás",{"v":900,"d":"900 Ft"},{"v":900,"d":"900 Ft"},{"v":0,"d":"0 Ft"}]
[]
[{"$nulls":9},"Hitelek",{"v":200,"d":"200 Ft"},{"v":200,"d":"200 Ft"},{"v":0,"d":"0 Ft"}]
[]
[{"$nulls":9},"Személyes higiénia",{"v":150,"d":"150 Ft"},{"v":140,"d":"140 Ft"},{"v":10,"d":"10 Ft"}]
[]
[{"$nulls":9},"Háziállatok",{"v":170,"d":"170 Ft"},{"v":100,"d":"100 Ft"},{"v":70,"d":"70 Ft"}]
[]
[{"$nulls":9},"Megtakarítások vagy befektetések",{"v":200,"d":"200 Ft"},{"v":200,"d":"200 Ft"},{"v":0,"d":"0 Ft"}]
[]
[{"$nulls":9},"Adók",{"v":300,"d":"300 Ft"},{"v":300,"d":"300 Ft"},{"v":0,"d":"0 Ft"}]
[]
[{"$nulls":9},"Közlekedés",{"v":1425,"d":"1,425 Ft"},{"v":1375,"d":"1,375 Ft"},{"v":50,"d":"50 Ft"}]
[]
[{"$nulls":9},"Végösszeg",{"v":7915,"d":"7,915 Ft"},{"v":7860,"d":"7,860 Ft"},{"v":55,"d":"55 Ft"}]

{"sheet":"Havi kiadások","index":1,"n_rows":62,"n_cols":7,"rows_kept":62}
[null,"Havi kiadások"]
[null,"Leírás","Kategória","Tervezett költség","Tényleges költség","Különbség","Tényleges költség áttekintése"]
[null,"Iskolán kívüli tevékenységek","Gyermekek",{"v":40,"d":"40 Ft"},{"v":40,"d":"40 Ft"},{"$f":"KöltségvetésRészletei[[#This Row],[Tervezett költség]]-KöltségvetésRészletei[[#This Row],[Tényleges költség]]","v":{"v":0,"d":"0 Ft"}},{"$f":"KöltségvetésRészletei[[#This Row],[Tényleges költség]]","v":{"v":40,"d":"$40"}}]
[null,"Orvos","Gyermekek",null,null,{"$f":"KöltségvetésRészletei[[#This Row],[Tervezett költség]]-KöltségvetésRészletei[[#This Row],[Tényleges költség]]","v":{"v":0,"d":"0 Ft"}},{"$f":"KöltségvetésRészletei[[#This Row],[Tényleges költség]]","v":{"v":0,"d":"$0"}}]
[null,"Iskolai felszerelés","Gyermekek",null,null,{"$f":"KöltségvetésRészletei[[#This Row],[Tervezett költség]]-KöltségvetésRészletei[[#This Row],[Tényleges költség]]","v":{"v":0,"d":"0 Ft"}},{"$f":"KöltségvetésRészletei[[#This Row],[Tényleges költség]]","v":{"v":0,"d":"$0"}}]
[null,"Tandíj","Gyermekek",{"v":100,"d":"100 Ft"},{"v":100,"d":"100 Ft"},{"$f":"KöltségvetésRészletei[[#This Row],[Tervezett költség]]-KöltségvetésRészletei[[#This Row],[Tényleges költség]]","v":{"v":0,"d":"0 Ft"}},{"$f":"KöltségvetésRészletei[[#This Row],[Tényleges költség]]","v":{"v":100,"d":"$100"}}]
[null,"Koncertek","Szórakozás",{"v":50,"d":"50 Ft"},{"v":40,"d":"40 Ft"},{"$f":"KöltségvetésRészletei[[#This Row],[Tervezett költség]]-KöltségvetésRészletei[[#This Row],[Tényleges költség]]","v":{"v":10,"d":"10 Ft"}},{"$f":"KöltségvetésRészletei[[#This Row],[Tényleges költség]]","v":{"v":40,"d":"$40"}}]
[null,"Színház","Szórakozás",{"v":200,"d":"200 Ft"},{"v":150,"d":"150 Ft"},{"$f":"KöltségvetésRészletei[[#This Row],[Tervezett költség]]-KöltségvetésRészletei[[#This Row],[Tényleges költség]]","v":{"v":50,"d":"50 Ft"}},{"$f":"KöltségvetésRészletei[[#This Row],[Tényleges költség]]","v":{"v":150,"d":"$150"}}]
[null,"Filmek","Szórakozás",{"v":50,"d":"50 Ft"},{"v":28,"d":"28 Ft"},{"$f":"KöltségvetésRészletei[[#This Row],[Tervezett költség]]-KöltségvetésRészletei[[#This Row],[Tényleges költség]]","v":{"v":22,"d":"22 Ft"}},{"$f":"KöltségvetésRészletei[[#This Row],[Tényleges költség]]","v":{"v":28,"d":"$28"}}]
[null,"Zene (CD-k, letöltések stb.)","Szórakozás",{"v":50,"d":"50 Ft"},{"v":30,"d":"30 Ft"},{"$f":"KöltségvetésRészletei[[#This Row],[Tervezett költség]]-KöltségvetésRészletei[[#This Row],[Tényleges költség]]","v":{"v":20,"d":"20 Ft"}},{"$f":"KöltségvetésRészletei[[#This Row],[Tényleges költség]]","v":{"v":30,"d":"$30"}}]
[null,"Sportesemények","Szórakozás",{"v":0,"d":"0 Ft"},{"v":40,"d":"40 Ft"},{"$f":"KöltségvetésRészletei[[#This Row],[Tervezett költség]]-KöltségvetésRészletei[[#This Row],[Tényleges költség]]","v":{"v":-40,"d":"-40 Ft"}},{"$f":"KöltségvetésRészletei[[#This Row],[Tényleges költség]]","v":{"v":40,"d":"$40"}}]
[null,"Videó/DVD (vásárlás)","Szórakozás",{"v":20,"d":"20 Ft"},{"v":50,"d":"50 Ft"},{"$f":"KöltségvetésRészletei[[#This Row],[Tervezett költség]]-KöltségvetésRészletei[[#This Row],[Tényleges költség]]","v":{"v":-30,"d":"-30 Ft"}},{"$f":"KöltségvetésRészletei[[#This Row],[Tényleges költség]]","v":{"v":50,"d":"$50"}}]
[null,"Videó/DVD (kölcsönzés)","Szórakozás",{"v":30,"d":"30 Ft"},{"v":20,"d":"20 Ft"},{"$f":"KöltségvetésRészletei[[#This Row],[Tervezett költség]]-KöltségvetésRészletei[[#This Row],[Tényleges költség]]","v":{"v":10,"d":"10 Ft"}},{"$f":"KöltségvetésRészletei[[#This Row],[Tényleges költség]]","v":{"v":20,"d":"$20"}}]
[null,"Étterem","Étel",{"v":1000,"d":"1,000 Ft"},{"v":1200,"d":"1,200 Ft"},{"$f":"KöltségvetésRészletei[[#This Row],[Tervezett költség]]-KöltségvetésRészletei[[#This Row],[Tényleges költség]]","v":{"v":-200,"d":"-200 Ft"}},{"$f":"KöltségvetésRészletei[[#This Row],[Tényleges költség]]","v":{"v":1200,"d":"$1,200"}}]
[null,"Élelmiszerek","Étel",{"v":100,"d":"100 Ft"},{"v":120,"d":"120 Ft"},{"$f":"KöltségvetésRészletei[[#This Row],[Tervezett költség]]-KöltségvetésRészletei[[#This Row],[Tényleges költség]]","v":{"v":-20,"d":"-20 Ft"}},{"$f":"KöltségvetésRészletei[[#This Row],[Tényleges költség]]","v":{"v":120,"d":"$120"}}]
[null,"Jótékonyság 1","Ajándékok/adományok",{"v":75,"d":"75 Ft"},{"v":100,"d":"100 Ft"},{"$f":"KöltségvetésRészletei[[#This Row],[Tervezett költség]]-KöltségvetésRészletei[[#This Row],[Tényleges költség]]","v":{"v":-25,"d":"-25 Ft"}},{"$f":"KöltségvetésRészletei[[#This Row],[Tényleges költség]]","v":{"v":100,"d":"$100"}}]
[null,"Jótékonyság 2","Ajándékok/adományok",{"v":25,"d":"25 Ft"},{"v":25,"d":"25 Ft"},{"$f":"KöltségvetésRészletei[[#This Row],[Tervezett költség]]-KöltségvetésRészletei[[#This Row],[Tényleges költség]]","v":{"v":0,"d":"0 Ft"}},{"$f":"KöltségvetésRészletei[[#This Row],[Tényleges költség]]","v":{"v":25,"d":"$25"}}]
[null,"1. ajándék","Ajándékok/adományok",null,null,{"$f":"KöltségvetésRészletei[[#This Row],[Tervezett költség]]-KöltségvetésRészletei[[#This Row],[Tényleges költség]]","v":{"v":0,"d":"0 Ft"}},{"$f":"KöltségvetésRészletei[[#This Row],[Tényleges költség]]","v":{"v":0,"d":"$0"}}]
[null,"2. ajándék","Ajándékok/adományok",null,null,{"$f":"KöltségvetésRészletei[[#This Row],[Tervezett költség]]-KöltségvetésRészletei[[#This Row],[Tényleges költség]]","v":{"v":0,"d":"0 Ft"}},{"$f":"KöltségvetésRészletei[[#This Row],[Tényleges költség]]","v":{"v":0,"d":"$0"}}]
[null,"Kábel/műhold","Lakás",{"v":100,"d":"100 Ft"},{"v":100,"d":"100 Ft"},{"$f":"KöltségvetésRészletei[[#This Row],[Tervezett költség]]-KöltségvetésRészletei[[#This Row],[Tényleges költség]]","v":{"v":0,"d":"0 Ft"}},{"$f":"KöltségvetésRészletei[[#This Row],[Tényleges költség]]","v":{"v":100,"d":"$100"}}]
[null,"Villany","Lakás",{"v":45,"d":"45 Ft"},{"v":50,"d":"50 Ft"},{"$f":"KöltségvetésRészletei[[#This Row],[Tervezett költség]]-KöltségvetésRészletei[[#This Row],[Tényleges költség]]","v":{"v":-5,"d":"-5 Ft"}},{"$f":"KöltségvetésRészletei[[#This Row],[Tényleges költség]]","v":{"v":50,"d":"$50"}}]
[null,"Gáz","Lakás",{"v":300,"d":"300 Ft"},{"v":400,"d":"400 Ft"},{"$f":"KöltségvetésRészletei[[#This Row],[Tervezett költség]]-KöltségvetésRészletei[[#This Row],[Tényleges költség]]","v":{"v":-100,"d":"-100 Ft"}},{"$f":"KöltségvetésRészletei[[#This Row],[Tényleges költség]]","v":{"v":400,"d":"$400"}}]
[null,"Takarítás","Lakás",{"v":200,"d":"200 Ft"},null,{"$f":"KöltségvetésRészletei[[#This Row],[Tervezett költség]]-KöltségvetésRészletei[[#This Row],[Tényleges költség]]","v":{"v":200,"d":"200 Ft"}},{"$f":"KöltségvetésRészletei[[#This Row],[Tényleges költség]]","v":{"v":0,"d":"$0"}}]
[null,"Karbantartás","Lakás",{"v":200,"d":"200 Ft"},{"v":150,"d":"150 Ft"},{"$f":"KöltségvetésRészletei[[#This Row],[Tervezett költség]]-KöltségvetésRészletei[[#This Row],[Tényleges költség]]","v":{"v":50,"d":"50 Ft"}},{"$f":"KöltségvetésRészletei[[#This Row],[Tényleges költség]]","v":{"v":150,"d":"$150"}}]
[null,"Részlet vagy lakbér","Lakás",{"v":1700,"d":"1,700 Ft"},{"v":1700,"d":"1,700 Ft"},{"$f":"KöltségvetésRészletei[[#This Row],[Tervezett költség]]-KöltségvetésRészletei[[#This Row],[Tényleges költség]]","v":{"v":0,"d":"0 Ft"}},{"$f":"KöltségvetésRészletei[[#This Row],[Tényleges költség]]","v":{"v":1700,"d":"$1,700"}}]
[null,"Földgáz/olaj","Lakás",null,null,{"$f":"KöltségvetésRészletei[[#This Row],[Tervezett költség]]-KöltségvetésRészletei[[#This Row],[Tényleges költség]]","v":{"v":0,"d":"0 Ft"}},{"$f":"KöltségvetésRészletei[[#This Row],[Tényleges költség]]","v":{"v":0,"d":"$0"}}]
[null,"Online/internetszolgáltatás","Lakás",{"v":100,"d":"100 Ft"},{"v":100,"d":"100 Ft"},{"$f":"KöltségvetésRészletei[[#This Row],[Tervezett költség]]-KöltségvetésRészletei[[#This Row],[Tényleges költség]]","v":{"v":0,"d":"0 Ft"}},{"$f":"KöltségvetésRészletei[[#This Row],[Tényleges költség]]","v":{"v":100,"d":"$100"}}]
[null,"Telefon (mobil)","Lakás",{"v":60,"d":"60 Ft"},{"v":60,"d":"60 Ft"},{"$f":"KöltségvetésRészletei[[#This Row],[Tervezett költség]]-KöltségvetésRészletei[[#This Row],[Tényleges költség]]","v":{"v":0,"d":"0 Ft"}},{"$f":"KöltségvetésRészletei[[#This Row],[Tényleges költség]]","v":{"v":60,"d":"$60"}}]
[null,"Telefon (otthoni)","Lakás",{"v":35,"d":"35 Ft"},{"v":39,"d":"39 Ft"},{"$f":"KöltségvetésRészletei[[#This Row],[Tervezett költség]]-KöltségvetésRészletei[[#This Row],[Tényleges költség]]","v":{"v":-4,"d":"-4 Ft"}},{"$f":"KöltségvetésRészletei[[#This Row],[Tényleges költség]]","v":{"v":39,"d":"$39"}}]
[null,"Kellékek","Lakás",{"v":40,"d":"40 Ft"},{"v":55,"d":"55 Ft"},{"$f":"KöltségvetésRészletei[[#This Row],[Tervezett költség]]-KöltségvetésRészletei[[#This Row],[Tényleges költség]]","v":{"v":-15,"d":"-15 Ft"}},{"$f":"KöltségvetésRészletei[[#This Row],[Tényleges költség]]","v":{"v":55,"d":"$55"}}]
[null,"Szemétszállítás","Lakás",{"v":25,"d":"25 Ft"},{"v":22,"d":"22 Ft"},{"$f":"KöltségvetésRészletei[[#This Row],[Tervezett költség]]-KöltségvetésRészletei[[#This Row],[Tényleges költség]]","v":{"v":3,"d":"3 Ft"}},{"$f":"KöltségvetésRészletei[[#This Row],[Tényleges költség]]","v":{"v":22,"d":"$22"}}]
[null,"Víz- és csatornadíj","Lakás",{"v":25,"d":"25 Ft"},{"v":26,"d":"26 Ft"},{"$f":"KöltségvetésRészletei[[#This Row],[Tervezett költség]]-KöltségvetésRészletei[[#This Row],[Tényleges költség]]","v":{"v":-1,"d":"-1 Ft"}},{"$f":"KöltségvetésRészletei[[#This Row],[Tényleges költség]]","v":{"v":26,"d":"$26"}}]
[null,"Egészség","Biztosítás",{"v":400,"d":"400 Ft"},{"v":400,"d":"400 Ft"},{"$f":"KöltségvetésRészletei[[#This Row],[Tervezett költség]]-KöltségvetésRészletei[[#This Row],[Tényleges költség]]","v":{"v":0,"d":"0 Ft"}},{"$f":"KöltségvetésRészletei[[#This Row],[Tényleges költség]]","v":{"v":400,"d":"$400"}}]
[null,"Lakás","Biztosítás",{"v":400,"d":"400 Ft"},{"v":400,"d":"400 Ft"},{"$f":"KöltségvetésRészletei[[#This Row],[Tervezett költség]]-KöltségvetésRészletei[[#This Row],[Tényleges költség]]","v":{"v":0,"d":"0 Ft"}},{"$f":"KöltségvetésRészletei[[#This Row],[Tényleges költség]]","v":{"v":400,"d":"$400"}}]
[null,"Élet","Biztosítás",{"v":100,"d":"100 Ft"},{"v":100,"d":"100 Ft"},{"$f":"KöltségvetésRészletei[[#This Row],[Tervezett költség]]-KöltségvetésRészletei[[#This Row],[Tényleges költség]]","v":{"v":0,"d":"0 Ft"}},{"$f":"KöltségvetésRészletei[[#This Row],[Tényleges költség]]","v":{"v":100,"d":"$100"}}]
[null,"1. hitelkártya","Hitelek",{"v":200,"d":"200 Ft"},{"v":200,"d":"200 Ft"},{"$f":"KöltségvetésRészletei[[#This Row],[Tervezett költség]]-KöltségvetésRészletei[[#This Row],[Tényleges költség]]","v":{"v":0,"d":"0 Ft"}},{"$f":"KöltségvetésRészletei[[#This Row],[Tényleges költség]]","v":{"v":200,"d":"$200"}}]
[null,"2. hitelkártya","Hitelek",null,null,{"$f":"KöltségvetésRészletei[[#This Row],[Tervezett költség]]-KöltségvetésRészletei[[#This Row],[Tényleges költség]]","v":{"v":0,"d":"0 Ft"}},{"$f":"KöltségvetésRészletei[[#This Row],[Tényleges költség]]","v":{"v":0,"d":"$0"}}]
[null,"3. hitelkártya","Hitelek",null,null,{"$f":"KöltségvetésRészletei[[#This Row],[Tervezett költség]]-KöltségvetésRészletei[[#This Row],[Tényleges költség]]","v":{"v":0,"d":"0 Ft"}},{"$f":"KöltségvetésRészletei[[#This Row],[Tényleges költség]]","v":{"v":0,"d":"$0"}}]
[null,"Személyes","Hitelek",null,null,{"$f":"KöltségvetésRészletei[[#This Row],[Tervezett költség]]-KöltségvetésRészletei[[#This Row],[Tényleges költség]]","v":{"v":0,"d":"0 Ft"}},{"$f":"KöltségvetésRészletei[[#This Row],[Tényleges költség]]","v":{"v":0,"d":"$0"}}]
[null,"Tanulás","Hitelek",null,null,{"$f":"KöltségvetésRészletei[[#This Row],[Tervezett költség]]-KöltségvetésRészletei[[#This Row],[Tényleges költség]]","v":{"v":0,"d":"0 Ft"}},{"$f":"KöltségvetésRészletei[[#This Row],[Tényleges költség]]","v":{"v":0,"d":"$0"}}]
[null,"Ruházat","Személyes higiénia",{"v":150,"d":"150 Ft"},{"v":140,"d":"140 Ft"},{"$f":"KöltségvetésRészletei[[#This Row],[Tervezett költség]]-KöltségvetésRészletei[[#This Row],[Tényleges költség]]","v":{"v":10,"d":"10 Ft"}},{"$f":"KöltségvetésRészletei[[#This Row],[Tényleges költség]]","v":{"v":140,"d":"$140"}}]
[null,"Vegytisztító","Személyes higiénia",null,null,{"$f":"KöltségvetésRészletei[[#This Row],[Tervezett költség]]-KöltségvetésRészletei[[#This Row],[Tényleges költség]]","v":{"v":0,"d":"0 Ft"}},{"$f":"KöltségvetésRészletei[[#This Row],[Tényleges költség]]","v":{"v":0,"d":"$0"}}]
[null,"Haj- és körömápolás","Személyes higiénia",null,null,{"$f":"KöltségvetésRészletei[[#This Row],[Tervezett költség]]-KöltségvetésRészletei[[#This Row],[Tényleges költség]]","v":{"v":0,"d":"0 Ft"}},{"$f":"KöltségvetésRészletei[[#This Row],[Tényleges költség]]","v":{"v":0,"d":"$0"}}]
[null,"Fitneszklub","Személyes higiénia",null,null,{"$f":"KöltségvetésRészletei[[#This Row],[Tervezett költség]]-KöltségvetésRészletei[[#This Row],[Tényleges költség]]","v":{"v":0,"d":"0 Ft"}},{"$f":"KöltségvetésRészletei[[#This Row],[Tényleges költség]]","v":{"v":0,"d":"$0"}}]
[null,"Orvos","Személyes higiénia",null,null,{"$f":"KöltségvetésRészletei[[#This Row],[Tervezett költség]]-KöltségvetésRészletei[[#This Row],[Tényleges költség]]","v":{"v":0,"d":"0 Ft"}},{"$f":"KöltségvetésRészletei[[#This Row],[Tényleges költség]]","v":{"v":0,"d":"$0"}}]
[null,"Étel","Háziállatok",{"v":150,"d":"150 Ft"},{"v":75,"d":"75 Ft"},{"$f":"KöltségvetésRészletei[[#This Row],[Tervezett költség]]-KöltségvetésRészletei[[#This Row],[Tényleges költség]]","v":{"v":75,"d":"75 Ft"}},{"$f":"KöltségvetésRészletei[[#This Row],[Tényleges költség]]","v":{"v":75,"d":"$75"}}]
[null,"Ápolás","Háziállatok",{"v":20,"d":"20 Ft"},{"v":25,"d":"25 Ft"},{"$f":"KöltségvetésRészletei[[#This Row],[Tervezett költség]]-KöltségvetésRészletei[[#This Row],[Tényleges költség]]","v":{"v":-5,"d":"-5 Ft"}},{"$f":"KöltségvetésRészletei[[#This Row],[Tényleges költség]]","v":{"v":25,"d":"$25"}}]
[null,"Orvos","Háziállatok",null,null,{"$f":"KöltségvetésRészletei[[#This Row],[Tervezett költség]]-KöltségvetésRészletei[[#This Row],[Tényleges költség]]","v":{"v":0,"d":"0 Ft"}},{"$f":"KöltségvetésRészletei[[#This Row],[Tényleges költség]]","v":{"v":0,"d":"$0"}}]
[null,"Játékok","Háziállatok",null,null,{"$f":"KöltségvetésRészletei[[#This Row],[Tervezett költség]]-KöltségvetésRészletei[[#This Row],[Tényleges költség]]","v":{"v":0,"d":"0 Ft"}},{"$f":"KöltségvetésRészletei[[#This Row],[Tényleges költség]]","v":{"v":0,"d":"$0"}}]
[null,"Befektetési számla","Megtakarítások vagy befektetések",{"v":200,"d":"200 Ft"},{"v":200,"d":"200 Ft"},{"$f":"KöltségvetésRészletei[[#This Row],[Tervezett költség]]-KöltségvetésRészletei[[#This Row],[Tényleges költség]]","v":{"v":0,"d":"0 Ft"}},{"$f":"KöltségvetésRészletei[[#This Row],[Tényleges költség]]","v":{"v":200,"d":"$200"}}]
[null,"Nyugdíj-előtakarékosság","Megtakarítások vagy befektetések",null,null,{"$f":"KöltségvetésRészletei[[#This Row],[Tervezett költség]]-KöltségvetésRészletei[[#This Row],[Tényleges költség]]","v":{"v":0,"d":"0 Ft"}},{"$f":"KöltségvetésRészletei[[#This Row],[Tényleges költség]]","v":{"v":0,"d":"$0"}}]
[null,"Országos","Adók",{"v":300,"d":"300 Ft"},{"v":300,"d":"300 Ft"},{"$f":"KöltségvetésRészletei[[#This Row],[Tervezett költség]]-KöltségvetésRészletei[[#This Row],[Tényleges költség]]","v":{"v":0,"d":"0 Ft"}},{"$f":"KöltségvetésRészletei[[#This Row],[Tényleges költség]]","v":{"v":300,"d":"$300"}}]
[null,"Helyi","Adók",null,null,{"$f":"KöltségvetésRészletei[[#This Row],[Tervezett költség]]-KöltségvetésRészletei[[#This Row],[Tényleges költség]]","v":{"v":0,"d":"0 Ft"}},{"$f":"KöltségvetésRészletei[[#This Row],[Tényleges költség]]","v":{"v":0,"d":"$0"}}]
[null,"Regionális","Adók",null,null,{"$f":"KöltségvetésRészletei[[#This Row],[Tervezett költség]]-KöltségvetésRészletei[[#This Row],[Tényleges költség]]","v":{"v":0,"d":"0 Ft"}},{"$f":"KöltségvetésRészletei[[#This Row],[Tényleges költség]]","v":{"v":0,"d":"$0"}}]
[null,"Busz/taxi","Közlekedés",{"v":100,"d":"100 Ft"},{"v":150,"d":"150 Ft"},{"$f":"KöltségvetésRészletei[[#This Row],[Tervezett költség]]-KöltségvetésRészletei[[#This Row],[Tényleges költség]]","v":{"v":-50,"d":"-50 Ft"}},{"$f":"KöltségvetésRészletei[[#This Row],[Tényleges költség]]","v":{"v":150,"d":"$150"}}]
[null,"Benzin","Közlekedés",{"v":450,"d":"450 Ft"},{"v":400,"d":"400 Ft"},{"$f":"KöltségvetésRészletei[[#This Row],[Tervezett költség]]-KöltségvetésRészletei[[#This Row],[Tényleges költség]]","v":{"v":50,"d":"50 Ft"}},{"$f":"KöltségvetésRészletei[[#This Row],[Tényleges költség]]","v":{"v":400,"d":"$400"}}]
[null,"Biztosítás","Közlekedés",{"v":300,"d":"300 Ft"},{"v":300,"d":"300 Ft"},{"$f":"KöltségvetésRészletei[[#This Row],[Tervezett költség]]-KöltségvetésRészletei[[#This Row],[Tényleges költség]]","v":{"v":0,"d":"0 Ft"}},{"$f":"KöltségvetésRészletei[[#This Row],[Tényleges költség]]","v":{"v":300,"d":"$300"}}]
[null,"Engedélyeztetés","Közlekedés",{"v":25,"d":"25 Ft"},{"v":25,"d":"25 Ft"},{"$f":"KöltségvetésRészletei[[#This Row],[Tervezett költség]]-KöltségvetésRészletei[[#This Row],[Tényleges költség]]","v":{"v":0,"d":"0 Ft"}},{"$f":"KöltségvetésRészletei[[#This Row],[Tényleges költség]]","v":{"v":25,"d":"$25"}}]
[null,"Karbantartás","Közlekedés",{"v":100,"d":"100 Ft"},{"v":50,"d":"50 Ft"},{"$f":"KöltségvetésRészletei[[#This Row],[Tervezett költség]]-KöltségvetésRészletei[[#This Row],[Tényleges költség]]","v":{"v":50,"d":"50 Ft"}},{"$f":"KöltségvetésRészletei[[#This Row],[Tényleges költség]]","v":{"v":50,"d":"$50"}}]
[null,"Parkolási díjak","Közlekedés",null,null,{"$f":"KöltségvetésRészletei[[#This Row],[Tervezett költség]]-KöltségvetésRészletei[[#This Row],[Tényleges költség]]","v":{"v":0,"d":"0 Ft"}},{"$f":"KöltségvetésRészletei[[#This Row],[Tényleges költség]]","v":{"v":0,"d":"$0"}}]
[null,"Járműköltségek","Közlekedés",{"v":450,"d":"450 Ft"},{"v":450,"d":"450 Ft"},{"$f":"KöltségvetésRészletei[[#This Row],[Tervezett költség]]-KöltségvetésRészletei[[#This Row],[Tényleges költség]]","v":{"v":0,"d":"0 Ft"}},{"$f":"KöltségvetésRészletei[[#This Row],[Tényleges költség]]","v":{"v":450,"d":"$450"}}]
[null,"Összesen",null,{"$f":"SUBTOTAL(109,KöltségvetésRészletei[Tervezett költség])","v":{"v":7915,"d":"7,915 Ft"}},{"$f":"SUBTOTAL(109,KöltségvetésRészletei[Tényleges költség])","v":{"v":7860,"d":"7,860 Ft"}},{"$f":"SUBTOTAL(109,KöltségvetésRészletei[Különbség])","v":{"v":55,"d":"55 Ft"}}]

{"sheet":"Egyéb adatok","index":2,"n_rows":15,"n_cols":5,"rows_kept":15}
[null,"Kimutatástáblázat a Költségvetés áttekintése diagramhoz",null,null,"Keresési lista a Költségvetés részletei kategóriáihoz"]
[null,"Kategória","Költség",null,"Költségvetési kategória keresése"]
[null,"Gyermekek",140,null,"Gyermekek"]
[null,"Szórakozás",358,null,"Szórakozás"]
[null,"Étel",1320,null,"Étel"]
[null,"Ajándékok/adományok",125,null,"Ajándékok/adományok"]
[null,"Lakás",2702,null,"Lakás"]
[null,"Biztosítás",900,null,"Biztosítás"]
[null,"Hitelek",200,null,"Hitelek"]
[null,"Személyes higiénia",140,null,"Személyes higiénia"]
[null,"Háziállatok",100,null,"Háziállatok"]
[null,"Megtakarítások vagy befektetések",200,null,"Megtakarítások vagy befektetések"]
[null,"Adók",300,null,"Adók"]
[null,"Közlekedés",1375,null,"Közlekedés"]
[null,"Végösszeg",7860]